[Event "7. Arber-Senioren-Cup 2019"]
[Site "Bodenmais"]
[Date "2019.07.30"]
[Round "4.9"]
[White "Schuster, Herbert"]
[Black "Greul, Hans"]
[Result "0-1"]
[ECO "C00"]
[WhiteElo "1774"]
[BlackElo "2009"]
[Annotator "NA"]
[PlyCount "106"]
[EventDate "2019.07.27"]
[EventType "swiss"]
[EventCountry "GER"]
[SourceTitle "playchess.com"]
[Source "ChessBase"]
[SourceQuality "1"]
[TimeControl "5400+30"]

1. e4 {[%emt 0:00:00]} e6 {[%emt 0:00:00]} 2. Nf3 {[%emt 0:00:00]} d5 {[%emt 0:00:00]} 3. exd5 {[%emt 0:00:00]} exd5 {[%emt 0:00:00]} 4. d4 {[%emt 0:00:00]} Nf6 {[%emt 0:00:00]} 5. Bg5 {[%emt 0:00:00]} Bd6 {[%emt 0:00:00]} 6. Bd3 {[%emt 0:00:00]} O-O {[%emt 0:00:00]} 7. O-O {[%emt 0:00:00]} Bg4 {[%emt 0:00:00]} 8. Nbd2 {[%emt 0:00:00]} Nbd7 {[%emt 0:00:00]} 9. h3 {[%emt 0:00:00]} Bh5 {[%emt 0:00:00]} 10. c3 {[%emt 0:00:00]} c6 {[%emt 0:00:00]} 11. Qc2 {[%emt 0:00:00]} Qc7 {[%emt 0:00:00]} 12. Rfe1 {[%emt 0:00:00]} Rfe8 {[%emt 0:00:00]} 13. Bxf6 {[%emt 0:00:00]} Nxf6 {[%emt 0:00:00]} 14. Ng5 {[%emt 0:00:00]} Bg6 {[%emt 0:00:00]} 15. Bxg6 {[%emt 0:00:00]} hxg6 {[%emt 0:00:00]} 16. Rxe8+ {[%emt 0:00:00]} Rxe8 {[%emt 0:00:00]} 17. Ndf3 {[%emt 0:00:00]} Bf4 {[%emt 0:00:00]} 18. g3 {[%emt 0:00:00]} Bd6 {[%emt 0:00:00]} 19. Re1 {[%emt 0:00:00]} Rxe1+ {[%emt 0:00:00]} 20. Nxe1 {[%emt 0:00:00]} Bxg3 {[%emt 0:00:00]} 21. Nef3 {[%emt 0:01:24]} Bf4 {[%emt 0:00:00]} 22. Qe2 {[%emt 0:00:34]} Bxg5 {[%emt 0:00:00]} 23. Nxg5 {[%emt 0:00:22]} Qf4 {[%emt 0:00:00]} 24. Qe3 {[%emt 0:01:37]} Qf5 {[%emt 0:00:00]} 25. Qe5 {[%emt 0:02:34]} Qxe5 {[%emt 0:00:00]} 26. dxe5 {[%emt 0:00:33]} Ne8 {[%emt 0:00:00]} 27. e6 {[%emt 0:05:12]} f6 {[%emt 0:00:00]} 28. Nf7 {[%emt 0:00:24]} Kf8 {[%emt 0:00:00]} 29. Nh8 {[%emt 0:01:44]} Ke7 {[%emt 0:00:00]} 30. Nxg6+ {[%emt 0:00:21]} Kxe6 {[%emt 0:00:00]} 31. Kg2 {[%emt 0:00:48]} Nd6 {[%emt 0:00:49]} 32. Kf3 {[%emt 0:01:08]} Nc4 {[%emt 0:01:14]} 33. Nf4+ {[%emt 0:00:55]} Kf5 {[%emt 0:00:31]} 34. Nh5 {[%emt 0:01:57]} g5 {[%emt 0:02:52]} 35. b3 {[%emt 0:01:43]} Nd2+ {[%emt 0:03:59]} 36. Ke3 {[%emt 0:00:40]} Ne4 {[%emt 0:00:26]} 37. c4 {[%emt 0:03:38]} d4+ {[%emt 0:02:13]} 38. Kxd4 Nxf2 39. Ng7+ {[%emt 0:03:48]} Kf4 {[%emt 0:03:35]} 40. Nh5+ {[%emt 0:00:20]} Kf5 {[%emt 0:14:23]} 41. Ng7+ {[%emt 0:02:10]} Kg6 {[%emt 0:00:59]} 42. Ne6 {[%emt 0:00:23]} Nxh3 {[%emt 0:02:07]} 43. Nd8 {[%emt 0:00:22]} Nf4 {[%emt 0:06:03]} 44. Nxb7 {[%emt 0:00:54]} Ne6+ {[%emt 0:00:09]} 45. Ke3 {[%emt 0:01:13]} f5 {[%emt 0:00:21]} 46. Nd6 {[%emt 0:00:25]} g4 {[%emt 0:04:25]} 47. Nc8 {[%emt 0:00:43]} f4+ {[%emt 0:02:44]} 48. Kf2 {[%emt 0:01:48]} Kg5 {[%emt 0:01:11]} 49. Nd6 {[%emt 0:02:15]} g3+ {[%emt 0:00:19]} 50. Kg1 {[%emt 0:06:34]} f3 {[%emt 0:00:41]} 51. Ne4+ {[%emt 0:01:11]} Kf4 {[%emt 0:00:12]} 52. Nd2 {[%emt 0:00:46]} Nd4 {[%emt 0:00:53]} 53. Kh1 {[%emt 0:05:48]} Ne2 {[%emt 0:02:11]} 0-1

[Event "7. Arber-Senioren-Cup 2019"]
[Site "Bodenmais"]
[Date "2019.07.30"]
[Round "4.11"]
[White "Kurka, Dieter"]
[Black "Zwetz, Anita"]
[Result "1-0"]
[ECO "D00"]
[WhiteElo "2006"]
[BlackElo "1828"]
[Annotator "NA"]
[PlyCount "63"]
[EventDate "2019.07.27"]
[EventType "swiss"]
[EventCountry "GER"]
[SourceTitle "playchess.com"]
[Source "ChessBase"]
[SourceQuality "1"]
[TimeControl "5400+30"]

1. d4 {[%emt 0:00:00]} d5 {[%emt 0:00:00]} 2. Bf4 {[%emt 0:00:00]} c6 {[%emt 0:00:00]} 3. e3 {[%emt 0:00:00]} Nf6 {[%emt 0:00:00]} 4. c4 {[%emt 0:00:00]} e6 {[%emt 0:00:00]} 5. Nc3 {[%emt 0:00:00]} Nbd7 {[%emt 0:00:00]} 6. Nf3 {[%emt 0:00:00]} Qa5 {[%emt 0:00:00]} 7. Qc2 {[%emt 0:00:00]} Bb4 {[%emt 0:00:00]} 8. Nd2 {[%emt 0:00:00]} Nh5 {[%emt 0:00:00]} 9. Bg3 {[%emt 0:00:00]} Nxg3 {[%emt 0:00:00]} 10. hxg3 {[%emt 0:00:00]} Nf6 {[%emt 0:00:00]} 11. Be2 {[%emt 0:00:00]} Bd7 {[%emt 0:00:00]} 12. g4 {[%emt 0:00:00]} O-O-O {[%emt 0:02:42]} 13. g5 {[%emt 0:00:00]} Ne4 {[%emt 0:03:09]} 14. Ndxe4 {[%emt 0:00:00]} dxe4 {[%emt 0:00:07]} 15. c5 {[%emt 0:00:00]} e5 {[%emt 0:01:03]} 16. O-O {[%emt 0:00:00]} exd4 {[%emt 0:04:52]} 17. Nxe4 {[%emt 0:00:00]} Be6 {[%emt 0:05:31]} 18. a3 {[%emt 0:00:00]} dxe3 {[%emt 0:02:05]} 19. axb4 {[%emt 0:00:00]} exf2+ {[%emt 0:00:05]} 20. Kxf2 {[%emt 0:00:00]} Qxb4 {[%emt 0:00:22]} 21. Ra4 {[%emt 0:00:00]} Qb3 {[%emt 0:05:02]} 22. Qxb3 {[%emt 0:00:00]} Bxb3 23. Rxa7 {[%emt 0:00:02]} Kc7 {[%emt 0:02:29]} 24. Nd6 {[%emt 0:01:44]} Rxd6 {[%emt 0:07:10]} 25. cxd6+ {[%emt 0:00:10]} Kxd6 {[%emt 0:00:02]} 26. Rxb7 {[%emt 0:00:20]} Be6 {[%emt 0:04:36]} 27. Bf3 {[%emt 0:02:04]} Rc8 28. Kg3 c5 {[%emt 0:17:42]} 29. Bg4 {[%emt 0:00:43]} g6 {[%emt 0:02:38]} 30. Rf6 {[%emt 0:00:52]} Ke5 {[%emt 0:00:58]} 31. Re7 {[%emt 0:00:26]} Rc6 {[%emt 0:02:08]} 32. Rfxf7 {[%emt 0:00:40]} 1-0

[Event "7. Arber-Senioren-Cup 2019"]
[Site "Bodenmais"]
[Date "2019.07.30"]
[Round "4.12"]
[White "Meckel, Helmut"]
[Black "Limberg, Siegfried"]
[Result "0-1"]
[ECO "A00"]
[WhiteElo "1804"]
[BlackElo "1983"]
[Annotator "NA"]
[PlyCount "104"]
[EventDate "2019.07.27"]
[EventType "swiss"]
[EventCountry "GER"]
[SourceTitle "playchess.com"]
[Source "ChessBase"]
[SourceQuality "1"]
[TimeControl "5400+30"]

1. b4 {[%emt 0:00:00]} e5 {[%emt 0:00:00]} 2. Bb2 {[%emt 0:00:00]} d6 {[%emt 0:00:00]} 3. c4 {[%emt 0:00:00]} Nf6 {[%emt 0:00:00]} 4. e3 {[%emt 0:00:00]} Bf5 {[%emt 0:00:00]} 5. Nf3 {[%emt 0:00:00]} Nbd7 {[%emt 0:00:00]} 6. d4 {[%emt 0:00:00]} e4 {[%emt 0:00:00]} 7. Nfd2 {[%emt 0:00:00]} d5 {[%emt 0:00:00]} 8. cxd5 {[%emt 0:00:00]} Bxb4 {[%emt 0:00:00]} 9. Qb3 {[%emt 0:00:00]} Bxd2+ {[%emt 0:00:00]} 10. Nxd2 {[%emt 0:00:00]} Nb6 {[%emt 0:00:00]} 11. Bb5+ {[%emt 0:00:00]} Bd7 {[%emt 0:00:00]} 12. Ba3 {[%emt 0:00:00]} a6 {[%emt 0:03:48]} 13. Bxd7+ {[%emt 0:00:00]} Qxd7 {[%emt 0:01:55]} 14. d6 {[%emt 0:00:00]} Qb5 {[%emt 0:06:29]} 15. dxc7 {[%emt 0:00:00]} Qxb3 {[%emt 0:00:51]} 16. axb3 {[%emt 0:00:00]} Kd7 {[%emt 0:00:35]} 17. Rc1 {[%emt 0:00:00]} Rac8 {[%emt 0:01:53]} 18. Ke2 {[%emt 0:00:00]} Rxc7 {[%emt 0:01:05]} 19. Rxc7+ {[%emt 0:00:00]} Kxc7 {[%emt 0:00:06]} 20. Rc1+ {[%emt 0:00:00]} Kd7 {[%emt 0:00:37]} 21. Nc4 {[%emt 0:00:00]} Nbd5 {[%emt 0:05:14]} 22. Ne5+ {[%emt 0:00:00]} Ke6 {[%emt 0:00:45]} 23. f3 {[%emt 0:00:00]} g5 {[%emt 0:02:11]} 24. fxe4 {[%emt 0:00:00]} Nxe4 {[%emt 0:00:25]} 25. Nd3 {[%emt 0:00:00]} Ndc3+ {[%emt 0:08:13]} 26. Ke1 {[%emt 0:00:13]} Nd5 {[%emt 0:02:39]} 27. Nc5+ {[%emt 0:01:54]} Nxc5 {[%emt 0:00:13]} 28. Rxc5 {[%emt 0:00:04]} f5 {[%emt 0:01:26]} 29. g4 Rd8 30. Bb2 {[%emt 0:08:45]} b6 {[%emt 0:04:12]} 31. gxf5+ {[%emt 0:04:53]} Kxf5 {[%emt 0:00:16]} 32. Rc6 {[%emt 0:00:23]} Nb4 {[%emt 0:04:03]} 33. Rc3 {[%emt 0:03:00]} Ke4 {[%emt 0:00:21]} 34. Ke2 {[%emt 0:05:23]} Nd5 {[%emt 0:02:35]} 35. Rc6 {[%emt 0:00:33]} Re8 {[%emt 0:01:02]} 36. Bc1 {[%emt 0:04:36]} a5 {[%emt 0:01:08]} 37. Bd2 {[%emt 0:08:16]} Re7 {[%emt 0:01:47]} 38. Rh6 {[%emt 0:05:00]} Kf5 {[%emt 0:03:02]} 39. Kd3 {[%emt 0:00:39]} Nf6 {[%emt 0:00:26]} 40. h3 {[%emt 0:01:55]} Rd7 {[%emt 0:01:41]} 41. Bc3 {[%emt 0:02:47]} Re7 {[%emt 0:01:06]} 42. e4+ {[%emt 0:06:44]} Nxe4 {[%emt 0:00:57]} 43. Rxb6 {[%emt 0:00:07]} Nxc3 {[%emt 0:04:27]} 44. Kxc3 {[%emt 0:01:28]} Re3+ {[%emt 0:00:04]} 45. Kc4 {[%emt 0:00:19]} Rxh3 {[%emt 0:00:15]} 46. Rb5+ {[%emt 0:00:13]} Kf4 {[%emt 0:00:26]} 47. Rxa5 {[%emt 0:00:18]} g4 {[%emt 0:00:11]} 48. Ra7 {[%emt 0:04:01]} g3 {[%emt 0:00:21]} 49. Rf7+ {[%emt 0:00:37]} Ke3 {[%emt 0:00:13]} 50. d5 {[%emt 0:01:44]} Rh6 {[%emt 0:00:09]} 51. Rf1 {[%emt 0:04:52]} g2 {[%emt 0:00:10]} 52. Rb1 {[%emt 0:01:32]} Rh1 {[%emt 0:00:19]} 0-1

[Event "7. Arber-Senioren-Cup 2019"]
[Site "Bodenmais"]
[Date "2019.07.30"]
[Round "4.14"]
[White "Berger, Siegfried"]
[Black "Steiger, Michael"]
[Result "0-1"]
[ECO "B43"]
[WhiteElo "1548"]
[BlackElo "2016"]
[Annotator "NA"]
[PlyCount "40"]
[EventDate "2019.07.27"]
[EventType "swiss"]
[EventCountry "GER"]
[SourceTitle "playchess.com"]
[Source "ChessBase"]
[SourceQuality "1"]
[TimeControl "5400+30"]

1. e4 {[%emt 0:00:00]} c5 {[%emt 0:00:00]} 2. Nf3 {[%emt 0:00:00]} e6 {[%emt 0:00:00]} 3. d4 {[%emt 0:00:00]} cxd4 {[%emt 0:00:00]} 4. Nxd4 {[%emt 0:00:00]} a6 {[%emt 0:00:00]} 5. Nc3 {[%emt 0:00:00]} Qc7 {[%emt 0:00:00]} 6. a3 {[%emt 0:00:00]} Nf6 {[%emt 0:00:00]} 7. Bg5 {[%emt 0:00:00]} Be7 {[%emt 0:00:00]} 8. Bd3 {[%emt 0:00:00]} d6 {[%emt 0:00:00]} 9. Qe2 {[%emt 0:00:00]} Nbd7 {[%emt 0:00:00]} 10. f4 {[%emt 0:00:00]} h6 {[%emt 0:00:00]} 11. Bh4 {[%emt 0:00:00]} Nxe4 {[%emt 0:00:00]} 12. Bxe7 {[%emt 0:00:00]} Nxc3 {[%emt 0:00:00]} 13. Qg4 {[%emt 0:00:00]} Kxe7 {[%emt 0:00:00]} 14. O-O {[%emt 0:00:36]} Nf6 {[%emt 0:00:00]} 15. Qxg7 {[%emt 0:02:28]} Rg8 {[%emt 0:00:00]} 16. Nf5+ {[%emt 0:05:35]} exf5 {[%emt 0:00:00]} 17. Rfe1+ {[%emt 0:00:45]} Be6 {[%emt 0:00:00]} 18. Qxh6 {[%emt 0:01:23]} Nce4 {[%emt 0:00:40]} 19. Qh3 {[%emt 0:02:13]} Rg3 {[%emt 0:03:36]} 20. Qh4 {[%emt 0:04:10]} Qc5+ {[%emt 0:00:30]} 0-1

[Event "7. Arber-Senioren-Cup 2019"]
[Site "Bodenmais"]
[Date "2019.07.30"]
[Round "4.15"]
[White "Korte, Markus"]
[Black "Klimpel, Siegfried"]
[Result "1-0"]
[ECO "B22"]
[WhiteElo "2028"]
[BlackElo "1843"]
[Annotator "NA"]
[PlyCount "40"]
[EventDate "2019.07.27"]
[EventType "swiss"]
[EventCountry "GER"]
[SourceTitle "playchess.com"]
[Source "ChessBase"]
[SourceQuality "1"]
[TimeControl "5400+30"]

1. e4 {[%emt 0:00:00]} c5 {[%emt 0:00:00]} 2. c3 {[%emt 0:00:00]} Nf6 {[%emt 0:00:00]} 3. e5 {[%emt 0:00:00]} Nd5 {[%emt 0:00:00]} 4. Nf3 {[%emt 0:00:00]} Nc6 {[%emt 0:00:00]} 5. d4 {[%emt 0:00:00]} e6 {[%emt 0:00:00]} 6. Bc4 {[%emt 0:00:00]} Nb6 {[%emt 0:00:00]} 7. Bd3 {[%emt 0:00:00]} d5 {[%emt 0:00:00]} 8. exd6 {[%emt 0:00:00]} Bxd6 {[%emt 0:00:00]} 9. O-O {[%emt 0:00:00]} Qc7 {[%emt 0:00:00]} 10. dxc5 {[%emt 0:00:00]} Bxc5 {[%emt 0:00:00]} 11. Nbd2 {[%emt 0:00:00]} Bd7 {[%emt 0:00:00]} 12. Ne4 {[%emt 0:00:00]} Be7 {[%emt 0:00:00]} 13. Re1 {[%emt 0:00:00]} O-O-O {[%emt 0:00:00]} 14. Qe2 {[%emt 0:05:07]} f6 {[%emt 0:00:00]} 15. a4 {[%emt 0:06:35]} g5 {[%emt 0:04:52]} 16. b4 {[%emt 0:01:55]} Ne5 {[%emt 0:01:13]} 17. Nxe5 {[%emt 0:04:29]} Qxe5 {[%emt 0:00:53]} 18. Be3 {[%emt 0:02:41]} Kb8 {[%emt 0:11:08]} 19. Bd4 {[%emt 0:03:06]} Qf4 {[%emt 0:31:24]} 20. g3 {[%emt 0:09:15]} Qc7 1-0

[Event "7. Arber-Senioren-Cup 2019"]
[Site "Bodenmais"]
[Date "2019.07.30"]
[Round "4.16"]
[White "Benischek, Wolfgang"]
[Black "Peglau, Markus"]
[Result "1/2-1/2"]
[ECO "B10"]
[WhiteElo "2022"]
[BlackElo "1849"]
[Annotator "NA"]
[PlyCount "35"]
[EventDate "2019.07.27"]
[EventType "swiss"]
[EventCountry "GER"]
[SourceTitle "playchess.com"]
[Source "ChessBase"]
[SourceQuality "1"]
[TimeControl "5400+30"]

1. e4 {[%emt 0:00:00]} c6 {[%emt 0:00:00]} 2. f4 {[%emt 0:00:00]} d5 {[%emt 0:00:00]} 3. exd5 {[%emt 0:00:00]} cxd5 {[%emt 0:00:00]} 4. Nf3 {[%emt 0:00:00]} Nf6 {[%emt 0:00:00]} 5. d4 {[%emt 0:00:00]} Nc6 {[%emt 0:00:00]} 6. Bd3 {[%emt 0:00:00]} g6 {[%emt 0:00:00]} 7. O-O {[%emt 0:00:00]} Bg7 {[%emt 0:00:00]} 8. c3 {[%emt 0:00:00]} Bf5 {[%emt 0:00:00]} 9. Qe2 {[%emt 0:00:00]} Bxd3 {[%emt 0:00:00]} 10. Qxd3 {[%emt 0:00:00]} e6 {[%emt 0:00:00]} 11. Nbd2 {[%emt 0:00:00]} O-O {[%emt 0:00:00]} 12. Ne5 {[%emt 0:00:00]} Qc7 {[%emt 0:00:00]} 13. Kh1 {[%emt 0:00:00]} Rab8 {[%emt 0:00:00]} 14. a4 {[%emt 0:00:00]} Rbc8 {[%emt 0:00:00]} 15. Qf3 {[%emt 0:00:00]} a6 {[%emt 0:00:00]} 16. g4 {[%emt 0:00:00]} Ne7 {[%emt 0:03:25]} 17. Qg2 {[%emt 0:00:17]} b5 {[%emt 0:07:06]} 18. Ndf3 {[%emt 0:05:48]} 1/2-1/2

[Event "7. Arber-Senioren-Cup 2019"]
[Site "Bodenmais"]
[Date "2019.07.30"]
[Round "4.17"]
[White "Moser, Andreas"]
[Black "Steinbach, Peter"]
[Result "0-1"]
[ECO "B01"]
[WhiteElo "1693"]
[BlackElo "1958"]
[Annotator "NA"]
[PlyCount "116"]
[EventDate "2019.07.27"]
[EventType "swiss"]
[EventCountry "GER"]
[SourceTitle "playchess.com"]
[Source "ChessBase"]
[SourceQuality "1"]
[TimeControl "5400+30"]

1. e4 {[%emt 0:00:00]} d5 {[%emt 0:00:00]} 2. exd5 {[%emt 0:00:00]} Nf6 {[%emt 0:00:00]} 3. d4 {[%emt 0:00:00]} Bg4 {[%emt 0:00:00]} 4. Nf3 {[%emt 0:00:00]} Qxd5 {[%emt 0:00:00]} 5. Be2 {[%emt 0:00:00]} Nc6 {[%emt 0:00:00]} 6. Nc3 {[%emt 0:00:00]} Qh5 {[%emt 0:00:00] B01: Scandinavian Defence} 7. Bb5 {[%emt 0:00:00]} (7. O-O O-O-O 8. h3 Nxd4 9. Nxd4 Bxe2 10. Qxe2 Rxd4 11. Qe3 Qc5 12. b4 Qc4 13. Bb2 e6 14. a3 c5 15. Na4 Rd5 16. Nc3 Rd4 17. Na4 Rd5 18. Nc3 Rd4 19. Na4 Rd5 {½-½ (19) Alekseenko,K (2512)-Zenzera,A (2423) St Petersburg 2015}) 7... e6 {[%emt 0:00:00]} 8. h3 $146 {[%emt 0:00:00]} ({Predecessor:} 8. Qd3 Bd6 9. Ne4 Nxe4 10. Bxc6+ bxc6 11. Qxe4 Bxf3 12. gxf3 O-O 13. Qg4 Qxg4 14. fxg4 {0-1 (23) Soetewey,P (2085)-Vandevoort,P (2273) Gent 1989}) 8... Bd6 {[%emt 0:00:00]} 9. Be3 {[%emt 0:00:00]} O-O {[%emt 0:00:00]} 10. Qe2 {[%emt 0:00:00]} Nb4 {[%emt 0:13:01]} 11. O-O-O {[%emt 0:00:00]} Bxf3 {[%emt 0:00:15]} 12. gxf3 {[%emt 0:00:00]} a6 {[%emt 0:00:07]} 13. Bd3 {[%emt 0:00:00]} Qa5 {[%emt 0:09:37]} 14. Bc4 {[%emt 0:07:35]} b5 {[%emt 0:08:45]} 15. Bb3 {[%emt 0:00:36]} c6 {[%emt 0:16:28]} 16. Rhg1 {[%emt 0:08:13]} Qc7 {[%emt 0:03:11]} 17. Ne4 {[%emt 0:03:12]} Be7 {[%emt 0:07:54]} 18. Nxf6+ {[%emt 0:06:56]} Bxf6 {[%emt 0:00:26]} 19. Bg5 {[%emt 0:05:48]} Nd5 {[%emt 0:05:46]} 20. Bxf6 {[%emt 0:02:24]} Qf4+ {[%emt 0:00:48]} 21. Kb1 $17 {[%emt 0:01:56]} Nxf6 {[%emt 0:02:41]} 22. Qe3 {[%emt 0:01:28]} Qf5 {[%emt 0:02:45]} 23. Qg5 {[%emt 0:05:16]} Qxg5 {[%emt 0:00:58]} 24. Rxg5 {[%emt 0:00:16]} Rfd8 {[%emt 0:02:46]} 25. c3 {[%emt 0:01:15]} g6 {[%emt 0:00:52]} 26. Rdg1 {[%emt 0:02:16]} Kf8 {[%emt 0:00:27]} 27. Re5 {[%emt 0:02:50]} Ke7 {[%emt 0:01:23]} 28. a3 {[%emt 0:01:28]} Rac8 {[%emt 0:02:22]} 29. Rgg5 {[%emt 0:04:39]} Nd7 {[%emt 0:01:47]} 30. Re1 {[%emt 0:00:28]} Kf6 {[%emt 0:00:12]} 31. Rgg1 {[%emt 0:00:20]} c5 {[%emt 0:00:11]} 32. dxc5 {[%emt 0:04:09]} Nxc5 {[%emt 0:01:11]} 33. Bc2 {[%emt 0:01:33]} Rd2 {[%emt 0:00:18]} 34. Rgf1 {[%emt 0:06:07]} Rcd8 {[%emt 0:04:09]} 35. Kc1 {[%emt 0:03:14]} R8d5 {[%emt 0:05:42]} 36. Rd1 {[%emt 0:00:49]} Rxd1+ {[%emt 0:02:12]} 37. Bxd1 {[%emt 0:01:22]} Nd3+ {[%emt 0:01:08]} 38. Kc2 {[%emt 0:00:56]} Nf4 {[%emt 0:00:04]} 39. Rh1 {[%emt 0:05:20]} Rh5 {[%emt 0:01:48]} 40. b3 {[%emt 0:01:22]} Rxh3 {[%emt 0:00:22]} 41. Rf1 {[%emt 0:00:57]} Rh2 {[%emt 0:00:46]} 42. Kd2 {[%emt 0:02:39]} h5 {[%emt 0:02:18]} 43. c4 {[%emt 0:01:03]} bxc4 {[%emt 0:00:19]} 44. bxc4 {[%emt 0:00:06]} h4 {[%emt 0:00:05]} 45. Ke3 {[%emt 0:00:58]} Ke5 {[%emt 0:00:23]} 46. Ba4 {[%emt 0:01:00]} f6 {[%emt 0:02:42]} 47. Bc2 {[%emt 0:02:23]} f5 {[%emt 0:01:26]} 48. a4 {[%emt 0:00:28]} Nh5 {[%emt 0:02:36]} 49. Kd3 {[%emt 0:01:03]} Nf4+ {[%emt 0:01:30]} 50. Ke3 {[%emt 0:00:14]} g5 {[%emt 0:00:05]} 51. Bb3 {[%emt 0:02:22]} g4 {[%emt 0:00:26]} 52. Bd1 {[%emt 0:00:18]} g3 {[%emt 0:00:50]} 53. fxg3 {[%emt 0:01:07]} hxg3 {[%emt 0:00:07]} 54. c5 {[%emt 0:03:57]} g2 {[%emt 0:01:10]} 55. Rg1 {[%emt 0:00:58]} Rh1 {[%emt 0:00:39]} 56. Kf2 {[%emt 0:02:12]} Nh3+ {[%emt 0:00:05]} 57. Kxg2 {[%emt 0:00:29]} Rxg1+ {[%emt 0:00:06]} 58. Kxh3 {[%emt 0:00:25]} Rxd1 {[%emt 0:00:10]} 0-1

[Event "7. Arber-Senioren-Cup 2019"]
[Site "Bodenmais"]
[Date "2019.07.30"]
[Round "4.18"]
[White "Schwalb, Manfred"]
[Black "Kirschner, Torsten"]
[Result "1/2-1/2"]
[ECO "B20"]
[WhiteElo "1965"]
[BlackElo "1767"]
[Annotator "NA"]
[PlyCount "105"]
[EventDate "2019.07.27"]
[EventType "swiss"]
[EventCountry "GER"]
[SourceTitle "playchess.com"]
[Source "ChessBase"]
[SourceQuality "1"]
[TimeControl "5400+30"]

1. e4 {[%emt 0:00:00]} c5 {[%emt 0:00:00]} 2. d3 {[%emt 0:00:00]} e6 {[%emt 0:00:00]} 3. g3 {[%emt 0:00:00]} Nc6 {[%emt 0:00:00]} 4. Bg2 {[%emt 0:00:00]} Nf6 {[%emt 0:00:00]} 5. Nf3 {[%emt 0:00:00]} d6 {[%emt 0:00:00]} 6. O-O {[%emt 0:00:00]} Be7 {[%emt 0:00:00]} 7. Nbd2 {[%emt 0:00:00]} Bd7 {[%emt 0:00:00]} 8. c3 {[%emt 0:00:00]} Qc7 {[%emt 0:00:00]} 9. a3 {[%emt 0:00:00]} d5 {[%emt 0:00:00]} 10. Re1 {[%emt 0:00:00]} d4 {[%emt 0:00:00]} 11. e5 {[%emt 0:00:00]} dxc3 {[%emt 0:00:00]} 12. bxc3 {[%emt 0:00:00]} Nd5 {[%emt 0:00:00]} 13. c4 {[%emt 0:00:00]} Nb6 {[%emt 0:01:19]} 14. Bb2 {[%emt 0:00:00]} Na5 {[%emt 0:07:12]} 15. a4 {[%emt 0:00:00]} Rd8 {[%emt 0:01:31]} 16. Bc3 {[%emt 0:00:00]} Nc8 {[%emt 0:01:59]} 17. Rb1 {[%emt 0:00:07]} Bc6 {[%emt 0:04:06]} 18. Qc2 {[%emt 0:02:03]} O-O {[%emt 0:03:02]} 19. Ne4 {[%emt 0:02:23]} Rd7 {[%emt 0:02:52]} 20. Re2 {[%emt 0:14:10]} Rfd8 {[%emt 0:02:32]} 21. Ne1 {[%emt 0:00:18]} h6 {[%emt 0:08:36]} 22. h4 {[%emt 0:00:58]} Bxe4 {[%emt 0:09:27]} 23. Bxe4 {[%emt 0:01:25]} Nc6 {[%emt 0:00:11]} 24. f4 {[%emt 0:09:42]} b6 {[%emt 0:00:52]} 25. Re3 {[%emt 0:01:56]} Nd4 {[%emt 0:07:48]} 26. Qg2 {[%emt 0:01:15]} Bf8 {[%emt 0:00:43]} 27. Bxd4 {[%emt 0:04:55]} cxd4 {[%emt 0:06:08]} 28. Re2 {[%emt 0:00:14]} Ne7 {[%emt 0:01:36]} 29. g4 {[%emt 0:06:58]} Rc8 {[%emt 0:04:00]} 30. h5 {[%emt 0:02:34]} f5 {[%emt 0:04:03]} 31. exf6 {[%emt 0:04:00]} gxf6 {[%emt 0:00:51]} 32. Qg3 {[%emt 0:07:11]} Kh8 {[%emt 0:03:20]} 33. Rg2 {[%emt 0:01:26]} Bg7 {[%emt 0:00:52]} 34. Nc2 {[%emt 0:04:00]} Rg8 {[%emt 0:01:30]} 35. Nb4 {[%emt 0:03:06]} f5 {[%emt 0:04:30]} 36. Bf3 {[%emt 0:01:55]} Bf6 {[%emt 0:01:15]} 37. Qh2 {[%emt 0:02:24]} fxg4 {[%emt 0:01:39]} 38. Bxg4 {[%emt 0:01:04]} Nf5 {[%emt 0:01:31]} 39. Bxf5 {[%emt 0:01:47]} Rxg2+ {[%emt 0:00:24]} 40. Kxg2 {[%emt 0:00:58]} exf5 {[%emt 0:01:33]} 41. Kf3 {[%emt 0:01:53]} Rg7 {[%emt 0:05:40]} 42. Nd5 {[%emt 0:00:34]} Qc6 {[%emt 0:00:32]} 43. Re1 {[%emt 0:01:15]} Re7 {[%emt 0:02:00]} 44. Rxe7 {[%emt 0:01:41]} Bxe7 {[%emt 0:00:42]} 45. Qe2 {[%emt 0:00:37]} Bf6 {[%emt 0:02:58]} 46. Kg3 {[%emt 0:00:47]} Kg7 {[%emt 0:00:20]} 47. Qg2 {[%emt 0:03:23]} Bd8 {[%emt 0:02:32]} 48. Qe2 {[%emt 0:03:50]} Kf7 {[%emt 0:00:50]} 49. Qe5 {[%emt 0:02:02]} Qe6 {[%emt 0:01:00]} 50. Qxe6+ {[%emt 0:04:58]} Kxe6 {[%emt 0:00:09]} 51. Nb4 {[%emt 0:01:03]} Kd6 {[%emt 0:00:32]} 52. Kf3 {[%emt 0:01:05]} a5 {[%emt 0:00:50]} 53. Nc2 1/2-1/2

[Event "7. Arber-Senioren-Cup 2019"]
[Site "Bodenmais"]
[Date "2019.07.30"]
[Round "4.19"]
[White "Halli, Gerhard"]
[Black "Boldt, Heinrich"]
[Result "1-0"]
[ECO "D00"]
[WhiteElo "1955"]
[BlackElo "1803"]
[Annotator "NA"]
[PlyCount "77"]
[EventDate "2019.07.27"]
[EventType "swiss"]
[EventCountry "GER"]
[SourceTitle "playchess.com"]
[Source "ChessBase"]
[SourceQuality "1"]
[TimeControl "5400+30"]

1. d4 {[%emt 0:00:00]} d5 {[%emt 0:00:00]} 2. Bf4 {[%emt 0:00:00]} Nf6 {[%emt 0:00:00]} 3. e3 {[%emt 0:00:00]} Bf5 {[%emt 0:00:00]} 4. Bd3 {[%emt 0:00:00]} Bxd3 {[%emt 0:00:00]} 5. Qxd3 {[%emt 0:00:00]} c6 {[%emt 0:00:00]} 6. Nf3 {[%emt 0:00:00]} e6 {[%emt 0:00:00]} 7. O-O {[%emt 0:00:00]} Qc8 {[%emt 0:00:00]} 8. Nbd2 {[%emt 0:00:00]} Nh5 {[%emt 0:00:00]} 9. Bg5 {[%emt 0:00:00]} Nd7 {[%emt 0:00:00]} 10. e4 {[%emt 0:00:00]} h6 {[%emt 0:00:00]} 11. Bh4 {[%emt 0:00:00]} g5 {[%emt 0:00:00]} 12. Bg3 {[%emt 0:00:00]} Nxg3 {[%emt 0:00:00]} 13. hxg3 {[%emt 0:00:00]} Nf6 {[%emt 0:04:40]} 14. e5 {[%emt 0:00:00]} Nh5 {[%emt 0:01:16]} 15. Nh2 {[%emt 0:00:00]} Be7 {[%emt 0:04:00]} 16. Ng4 {[%emt 0:00:00]} Ng7 {[%emt 0:11:31]} 17. f4 {[%emt 0:00:00]} Nf5 {[%emt 0:01:22]} 18. c3 {[%emt 0:00:00]} c5 {[%emt 0:04:54]} 19. Rfc1 {[%emt 0:01:23]} Qc6 {[%emt 0:05:05]} 20. Nf1 {[%emt 0:01:49]} O-O-O {[%emt 0:02:44]} 21. Nge3 {[%emt 0:00:17]} Nxe3 {[%emt 0:02:05]} 22. Nxe3 {[%emt 0:00:37]} c4 {[%emt 0:04:38]} 23. Qe2 {[%emt 0:04:25]} Rdg8 {[%emt 0:04:15]} 24. f5 {[%emt 0:00:30]} h5 {[%emt 0:01:10]} 25. Rf1 {[%emt 0:00:57]} Qe8 {[%emt 0:05:20]} 26. Qc2 {[%emt 0:03:20]} g4 {[%emt 0:02:07]} 27. f6 {[%emt 0:00:08]} Bf8 {[%emt 0:01:41]} 28. b3 {[%emt 0:00:24]} Qc6 {[%emt 0:02:45]} 29. Kf2 {[%emt 0:02:11]} Bh6 {[%emt 0:01:11]} 30. Rh1 {[%emt 0:00:11]} Bxe3+ {[%emt 0:00:45]} 31. Kxe3 {[%emt 0:00:03]} Rg5 {[%emt 0:00:56]} 32. bxc4 {[%emt 0:00:46]} dxc4 {[%emt 0:03:03]} 33. Qe4 {[%emt 0:00:11]} Kc7 {[%emt 0:02:27]} 34. Rab1 {[%emt 0:00:52]} b6 {[%emt 0:02:48]} 35. Rb4 {[%emt 0:00:43]} Rgg8 {[%emt 0:01:09]} 36. Qxc6+ {[%emt 0:00:26]} Kxc6 {[%emt 0:00:22]} 37. Rxc4+ {[%emt 0:00:01]} Kd5 {[%emt 0:00:20]} 38. Rc7 {[%emt 0:00:37]} b5 39. Rc5# {Kc6 Rc4+} 1-0